fUSD/lending_fUSD_20241009
["ID","MTS","AMOUNT","RATE_DAILY","PERIOD"]
[340085631,1728486833854,-150.0,0.00010999,2]
[340085632,1728486833873,-500.0,0.00010999,2]
[340085633,1728486833894,-500.0,0.00010999,2]
[340085634,1728486833917,-500.0,0.00010999,2]
[340085635,1728486833937,-436.84414409,0.00010999,2]
[340085636,1728486833958,-444.69186588,0.00010999,2]
[340085637,1728486833983,-40388.44337475,0.00011,2]
[340085641,1728487332142,-150.0,0.00010899,2]
[340085642,1728487332164,-1543.0613,0.000109,2]
[340085643,1728487332184,-7500.0,0.000109,2]
[340085644,1728487332205,-174.19682027,0.000109,2]
[340085645,1728487332231,-1412.5976,0.000109,2]
[340085646,1728487332251,-545.78636472,0.000109,2]
[340085647,1728487332272,-161.91,0.00010959,2]
[340085648,1728487332292,-176.58,0.00010959,2]
[340085649,1728487332313,-882.92,0.00010959,2]
[340085650,1728487332334,-389.05385113,0.00010973,2]
[340085651,1728487332357,-12063.89406388,0.00011,2]
[340085652,1728487544194,151.75,9.893e-05,2]
[340085669,1728487831699,-55.38439638,0.000107,2]
[340085670,1728487831709,-663.87001003,0.000107,2]
[340085671,1728487831720,-930.74559359,0.000107,2]
[340085672,1728487831729,-6988.1238,0.0001079,2]
[340085673,1728487831740,-973.97857708,0.000108,2]
[340085674,1728487831749,-300.0,0.00010889,2]
[340085675,1728487831758,-709.21020301,0.0001089,2]
[340085676,1728487831770,-5122.22480104,0.0001089,2]
[340085677,1728487831780,-947.8638113,0.0001089,2]
[340085678,1728487831791,-1366.00042613,0.0001089,2]
[340085679,1728487831803,-1571.8,0.0001089,2]
[340085680,1728487831814,-15485.69369786,0.0001089,2]
[340085681,1728487831824,-5438.84220717,0.000109,2]
[340085682,1728487831836,-2019.02952842,0.000109,2]
[340085683,1728487831848,-42.12826441,0.000109,2]
[340085684,1728487831861,-182.1578,0.000109,2]
[340085685,1728487831871,-2242.692952,0.000109,2]
[340085686,1728487831881,-1000.0,0.000109,2]
[340085687,1728487831891,-1464.25228359,0.000109,2]
[340085688,1728487831907,-6548.27281641,0.000109,2]
[340085689,1728487831917,-497.2572,0.000109,2]
[340085690,1728487831928,-447.5036509,0.000109,2]
[340085691,1728487831937,-225.35451009,0.00010999,2]
[340085692,1728487831946,-4765.52755512,0.00010999,2]
[340085693,1728487831956,-49453.45912227,0.00011,2]
[340085694,1728487831976,-662.54834617,0.00011,2]
[340085695,1728487831987,-17804.33994674,0.00011,2]
[340085696,1728487831998,-679.71,0.00011,2]
[340085697,1728487832009,-5905.61785603,0.00011,2]
[340085698,1728487832022,-818.82444517,0.00011,2]
[340085699,1728487832033,-867.99467088,0.00011,2]
[340085700,1728487832044,-381.49449509,0.00011,2]
[340085701,1728487832057,-4735.59559147,0.00011,2]
[340085702,1728487832068,-5622.61930903,0.00011,2]
[340085703,1728487832079,-3293.83535601,0.00011,2]
[340085704,1728487832091,-500.0,0.00011,2]
[340085705,1728487832103,-4390.21581886,0.00011,2]
[340085706,1728487832114,-711.6,0.00011,2]
[340085707,1728487832125,-509.22801043,0.00011,2]
[340085720,1728487837724,-316.48921528,0.000109,2]
[340085721,1728487837733,-4982.34538962,0.00011,2]
[340085722,1728487837745,-838.63282662,0.00011,2]
[340085723,1728487837756,-12796.0661975,0.00011,2]
[340085724,1728487837767,-705.09885338,0.00011,2]
[340085725,1728487837888,-949619.80055834,0.00011,2]
[340085726,1728487837899,-24266.78211355,0.00011,2]
[340085727,1728487837910,-632.6228459,0.00011,2]
[340085728,1728487837921,-562.55848392,0.00011,2]
[340085729,1728487837934,-794.86802,0.00011,2]
[340085730,1728487837948,-11397.85447334,0.00011,2]
[340085731,1728487837958,-459.01463883,0.00011,2]
[340085732,1728487837969,-6884.88004383,0.00011,2]
[340085733,1728487837981,-19099.21,0.00011,2]
[340085734,1728487837993,-6057.23386798,0.00011,2]
[340085735,1728487838004,-13271.56862149,0.00011,2]
[340085736,1728487838015,-24654.16122351,0.00011,2]
[340085737,1728487838026,-22243.24876,0.00011,2]
[340085738,1728487838038,-680.29259209,0.00011,2]
[340085739,1728487838049,-1152.06794487,0.00011,2]
[340085740,1728487838063,-2146.17360397,0.00011,2]
[340085741,1728487838074,-523.16180576,0.00011,2]
[340085742,1728487838086,-1922.01009,0.00011,2]
[340085743,1728487838097,-7438.13842549,0.00011,2]
[340085744,1728487838108,-1233.64916876,0.00011,2]
[340085745,1728487838119,-31499.12898451,0.00011,2]
[340085746,1728487838130,-135717.78159402,0.00011,2]
[340085747,1728487838141,-24977.3687205,0.00011,2]
[340085748,1728487838152,-800.67916805,0.00011,2]
[340085749,1728487838163,-5974.7917284,0.00011,2]
[340085750,1728487838175,-3843.61361225,0.00011,2]
[340085751,1728487838186,-4498.0,0.00011,2]
[340085752,1728487838201,-3353.94450525,0.00011,2]
[340085753,1728487838212,-667.24633407,0.00011,2]
[340085754,1728487838224,-1720.75393469,0.00011,2]
[340085755,1728487838235,-6306.12655769,0.00011,2]
[340085756,1728487838247,-44927.75358361,0.00011,2]
[340085757,1728487838258,-24003.67265126,0.00011,2]
[340085759,1728487839658,-316.37510169,0.00010999,2]
[340085760,1728487839670,-320.33630767,0.00010999,2]
[340085761,1728487839682,-1562.78016588,0.00010999,2]
[340085762,1728487839694,-406.289999,0.00010999,2]
[340085763,1728487840050,-295.69770592,0.00010999,2]
[340085764,1728487840073,-1864.04827496,0.00010999,2]
[340085765,1728487840082,-11271.75809283,0.00011,2]
[340085766,1728487840096,-2414.47484465,0.00011,2]
[340085767,1728487840111,-13026.98897814,0.00011,2]
[340085768,1728487840126,-124550.07109908,0.00011,2]
[340085769,1728487840138,-300.060222,0.00011,2]
[340085770,1728487840149,-720.92214368,0.00011,2]
[340085771,1728487840160,-1434.64831312,0.00011,2]
[340085772,1728487840171,-388.21887325,0.00011,2]
[340085773,1728487840319,-1247.5726462,0.00011,2]
[340085774,1728487841848,150.0,0.000135,3]
[340085784,1728487842840,-1091.5727294,0.000109,2]
[340085786,1728487842854,-31817.08351088,0.00011,2]
[340085788,1728487842865,-62053.80518589,0.00011,2]
[340085792,1728487842896,-6949.9344931,0.00011,2]
[340085795,1728487842907,-12499.56051335,0.00011,2]
[340085801,1728487843186,-1687229.8413408,0.00011,2]
[340085825,1728487845921,-1264.7968584,0.00011,2]
[340085826,1728487846114,-1402.18700346,0.00011,2]
[340085827,1728487978792,641.0,8.573e-05,2]
[340085828,1728488017931,500.0,0.0001023,3]
[340085829,1728488029279,1793.23,0.0001023,2]
[340085830,1728488102779,1000.0,0.00010131,2]
[340085831,1728488264061,2576.73,0.00010099,2]
[340085832,1728488534179,896.61,0.00010226,2]
[340085833,1728488537868,608.95,8.308e-05,2]
[340085834,1728488565298,2465.53,0.00010158,2]
[340085835,1728488572864,206.18,0.00010161,2]
[340085836,1728488610238,200.0,0.00010195,2]
[340085837,1728488676385,379.18,0.00010155,2]
[340085838,1728488706035,23900.0,0.00010144,2]
[340085839,1728488850378,500.0,0.00010181,2]
[340085840,1728488908280,11515.0,0.000135,3]
[340085841,1728488909081,407.51,0.00010181,2]
[340085842,1728488940956,11515.0,0.000135,3]
[340085843,1728488973117,11515.0,0.000131,3]
[340085844,1728489004994,11515.0,0.000131,3]
[340085862,1728489031701,-222.58899851,0.00010259,2]
[340085864,1728489031710,-250.0,0.0001026,2]
[340085866,1728489031719,-158.61,0.00010283,2]
[340085868,1728489031729,-1668.80100149,0.00010307,2]
[340085870,1728489031740,-841.58202303,0.00010307,2]
[340085872,1728489031750,-854.80884198,0.00010307,2]
[340085873,1728489031761,-143.4281335,0.00010307,2]
[340085874,1728489031770,-112.98451119,0.00010314,2]
[340085875,1728489031781,-119.04548881,0.00010314,2]
[340085876,1728489031790,-250.0,0.00010329,2]
[340085877,1728489031799,-348.04,0.00010364,2]
[340085878,1728489031808,-209.35086996,0.00010396,2]
[340085879,1728489031819,-2414.07668284,0.00010396,2]
[340085880,1728489031833,-94.8924472,0.00010396,2]
[340085881,1728489031842,-171.2,0.00010429,2]
[340085882,1728489031852,-150.0,0.00010561,2]
[340085883,1728489031861,-442.53,0.00010562,2]
[340085884,1728489031870,-150.99,0.00010562,2]
[340085885,1728489031879,-1255.49,0.00010562,2]
[340085886,1728489031888,-150.99,0.00010562,2]
[340085887,1728489031897,-299.99,0.00010562,2]
[340085888,1728489031907,-2366.9175528,0.00010562,2]
[340085889,1728489031921,-3949.7614307,0.00010562,2]
[340085890,1728489031932,-1502.9910165,0.00010562,2]
[340085891,1728489031944,-797.89,0.00010562,2]
[340085892,1728489031953,-217.0,0.00010562,2]
[340085893,1728489031962,-523.93,0.00010563,2]
[340085894,1728489031975,-499.99,0.00010563,2]
[340085895,1728489031983,-447.91,0.00010563,2]
[340085896,1728489031993,-608.95,0.00010572,2]
[340085897,1728489032002,-1000.0,0.000109,2]
[340085898,1728489032011,-166.78438949,0.000109,2]
[340085899,1728489032020,-28716.7276,0.000109,2]
[340085900,1728489032029,-19002.978,0.000109,2]
[340085901,1728489032038,-3785.405,0.000109,2]
[340085902,1728489032048,-43025.37550916,0.000109,2]
[340085903,1728489032058,-163.76125556,0.000109,2]
[340085904,1728489032068,-969.4766,0.000109,2]
[340085905,1728489032079,-1091.57272942,0.000109,2]
[340085906,1728489032089,-1951.5920661,0.000109,2]
[340085907,1728489032097,-166.78438949,0.00010904,2]
[340085908,1728489032106,-166.78438949,0.00010908,2]
[340085909,1728489032115,-166.78438949,0.00010912,2]
[340085910,1728489032127,-160.38,0.00010959,2]
[340085911,1728489032136,-598.36,0.00010959,2]
[340085912,1728489032146,-159.21,0.00010959,2]
[340085913,1728489032155,-182.95,0.00010959,2]
[340085914,1728489032164,-150.0,0.00010959,2]
[340085916,1728489032173,-1500.0,0.00010959,2]
[340085917,1728489032182,-250.0,0.00010959,2]
[340085919,1728489032193,-500.0,0.00010973,2]
[340085921,1728489032203,-500.0,0.00010973,2]
[340085922,1728489032212,-1211.43458627,0.00010999,2]
[340085923,1728489032221,-463.61336937,0.00010999,2]
[340085924,1728489032230,-502.62616882,0.00010999,2]
[340085925,1728489032239,-500.0,0.00010999,2]
[340085926,1728489032248,-500.0,0.00010999,2]
[340085927,1728489032257,-427.14727838,0.00010999,2]
[340085928,1728489032267,-481.67204763,0.00010999,2]
[340085929,1728489032278,-500.0,0.00010999,2]
[340085930,1728489032287,-500.0,0.00010999,2]
[340085931,1728489032297,-500.0,0.00010999,2]
[340085932,1728489032306,-500.0,0.00010999,2]
[340085933,1728489032315,-500.0,0.00010999,2]
[340085934,1728489032324,-327.83011891,0.00010999,2]
[340085935,1728489032334,-500.0,0.00010999,2]
[340085936,1728489032344,-500.0,0.00010999,2]
[340085937,1728489032354,-500.0,0.00010999,2]
[340085938,1728489032363,-500.0,0.00010999,2]
[340085939,1728489032373,-545.0,0.00011,2]
[340085940,1728489032382,-282317.48182281,0.00011,2]
[340085941,1728489032393,-6817.17459968,0.00011,2]
[340085942,1728489032403,-415.98592689,0.00011,2]
[340085943,1728489032418,-7914.48,0.00011,2]
[340085944,1728489032432,-726.67746112,0.00011,2]
[340085945,1728489032449,-857.30470671,0.00011,2]
[340085946,1728489032460,-4993.424,0.00011,2]
[340085947,1728489032471,-528.67243227,0.00011,2]
[340085948,1728489032483,-265025.06333173,0.00011,2]
[340085949,1728489032495,-71525.00000118,0.00011,2]
[340085950,1728489032506,-675.44379183,0.00011,2]
[340085951,1728489032517,-7098.22734583,0.00011,2]
[340085952,1728489032542,-1800.0,0.00011,2]
[340085961,1728489037824,3290.0,0.000134,3]
[340085963,1728489037840,-573.87931727,0.000109,2]
[340085964,1728489037849,-4572.14738215,0.000109,2]
[340085965,1728489037860,-2927.85261785,0.000109,2]
[340085966,1728489037870,-402.19437012,0.000109,2]
[340085967,1728489037879,-811.62,0.00010959,2]
[340085968,1728489037888,-301.63714768,0.00011,2]
[340085969,1728489037900,-4455.8989701,0.00011,2]
[340085970,1728489037980,-644568.73313865,0.00011,2]
[340085971,1728489038035,-2000.0,0.00011,2]
[340085972,1728489038092,-484.0774728,0.00011,2]
[340085973,1728489038147,-5364.2574944,0.00011,2]
[340085974,1728489038204,-739.71,0.00011,2]
[340085993,1728489039883,-639.64674,0.00011,2]
[340085994,1728489039894,-10746.94944636,0.00011,2]
[340085995,1728489039905,-6234.75045804,0.00011,2]
[340085996,1728489039936,-1080.28693289,0.00011,2]
[340085997,1728489039949,-3361.07830627,0.00011,2]
[340085998,1728489039991,-288384.34221439,0.00011,2]
[340085999,1728489040045,-145561.86969388,0.00011,2]
[340086000,1728489040099,-1497.19475649,0.00011,2]
[340086001,1728489040153,-354.76611255,0.00011,2]
[340086002,1728489040164,-1615.981716,0.00011,2]
[340086003,1728489040175,-2073.68742079,0.00011,2]
[340086004,1728489040208,-16975.58111324,0.00011,2]
[340086005,1728489040219,-1311.86861233,0.00011,2]
[340086006,1728489040230,-599.45056012,0.00011,2]
[340086007,1728489040240,-623.7,0.00011,2]
[340086008,1728489040251,-1182.8,0.00011,2]
[340086020,1728489042828,-11017.7906506,0.00011,2]
[340086021,1728489042881,-929.96123073,0.00011,2]
[340086022,1728489042892,-541.92539657,0.00011,2]
[340086023,1728489042903,-697.68583,0.00011,2]
[340086024,1728489042913,-720.02828238,0.00011,2]
[340086025,1728489042924,-502.49912,0.00011,2]
[340086026,1728489042940,-858.6849167,0.00011,2]
[340086027,1728489042996,-1308.00000413,0.00011,2]
[340086028,1728489043104,-5319.55331374,0.00011,2]
[340086035,1728489045788,-590.84,0.00010959,2]
[340086036,1728489045797,-20914.77610401,0.00011,2]
[340086037,1728489045949,-656.86932194,0.00011,2]
[340086038,1728489046002,-31822.2976061,0.00011,2]
[340086039,1728489050793,1900.0,0.000102,3]
[340086040,1728489052899,3900.0,0.000103,3]
[340086041,1728489054086,2411.3229239,0.00010999,3]
[340086042,1728489054117,2411.3229239,0.00010999,3]
[340086043,1728489054147,2411.3229239,0.00010999,3]
[340086044,1728489054177,2411.3229239,0.00010999,3]
[340086045,1728489054209,199.83022521,0.00010999,3]
[340086046,1728489054239,2411.3229239,0.00010999,3]
[340086047,1728489054268,2411.3229239,0.00010999,3]
[340086048,1728489054300,200.16977479,0.00010999,3]
[340086049,1728489054333,2411.3229239,0.00010999,3]
[340086050,1728489054363,2411.3229239,0.00010999,3]
[340086051,1728489054391,2411.3229239,0.00010999,3]
[340086052,1728489054429,2411.3229239,0.00010999,3]
[340086053,1728489054464,2411.3229239,0.00010999,3]
[340086054,1728489054493,2411.32292389,0.00010999,3]
[340086055,1728489055006,5800.0,0.000104,3]
[340086056,1728489057102,7800.0,0.000105,3]
[340086057,1728489059254,1264.12491321,0.000106,3]
[340086058,1728489059281,8435.87508679,0.000106,3]
[340086059,1728489061338,1900.0,0.000107,3]
[340086060,1728489063443,1900.0,0.000108,3]
[340086061,1728489065568,1900.0,0.000109,3]
[340086062,1728489197996,11515.0,0.000123,3]
[340086063,1728489230076,4076.0,0.000123,3]
[340086064,1728489388038,11515.0,0.000124,5]
[340086065,1728489761887,569.89,8.932e-05,2]
[340086066,1728489962719,-50000.0,0.000138,3]
[340086067,1728489966591,-50000.0,0.000138,3]
[340086068,1728489971507,-50000.0,0.000138,3]
[340086072,1728490231869,-250.0,0.00010277,2]
[340086073,1728490231880,-540.0,0.00010311,2]
[340086074,1728490231889,-323.08,0.000104,2]
[340086075,1728490231899,-171.64201155,0.00010434,2]
[340086076,1728490231910,-185.56798845,0.00010434,2]
[340086077,1728490231919,-4346.61,0.00010436,2]
[340086078,1728490231928,-220.34,0.00010454,2]
[340086079,1728490231937,-1000.0,0.00010545,2]
[340086080,1728490231947,-250.0,0.00010569,2]
[340086081,1728490231956,-300.0,0.00010779,2]
[340086082,1728490231965,-163.581,0.0001078,2]
[340086083,1728490231976,-472.948,0.0001078,2]
[340086084,1728490231985,-2257.1777,0.0001078,2]
[340086085,1728490231994,-4017.22182449,0.0001085,2]
[340086086,1728490232006,-603.03497768,0.0001085,2]
[340086087,1728490232018,-1091.26357004,0.0001085,2]
[340086088,1728490232030,-300.75376989,0.0001085,2]
[340086089,1728490232042,-646.60865978,0.0001085,2]
[340086090,1728490232057,-765.29022052,0.0001085,2]
[340086091,1728490232069,-1023.36525247,0.0001085,2]
[340086092,1728490232082,-696.77431602,0.0001085,2]
[340086093,1728490232093,-470.63449296,0.0001085,2]
[340086094,1728490232105,-5673.50863488,0.0001085,2]
[340086095,1728490232117,-8611.54428127,0.0001085,2]
[340086096,1728490232127,-499.99,0.0001085,2]
[340086097,1728490232143,-299.99,0.0001085,2]
[340086098,1728490232152,-187.5332026,0.0001087,2]
[340086099,1728490232162,-150.0,0.00010879,2]
[340086100,1728490232171,-166546.28665521,0.0001088,2]
[340086101,1728490232180,-351686.14933214,0.0001088,2]
[340086102,1728490232193,-548.6778876,0.0001088,2]
[340086103,1728490232205,-59878.65368258,0.0001088,2]
[340086104,1728490232215,-175.5685,0.000109,2]
[340086105,1728490232225,-166.78438949,0.000109,2]
[340086106,1728490232234,-177.07830343,0.000109,2]
[340086107,1728490232244,-1474.6495,0.000109,2]
[340086108,1728490232254,-382.5862115,0.000109,2]
[340086109,1728490232263,-442.3731676,0.000109,2]
[340086110,1728490232276,-1000.0,0.00010945,2]
[340086111,1728490232284,-1000.0,0.00010945,2]
[340086112,1728490232294,-1000.0,0.00010945,2]
[340086113,1728490232304,-1000.0,0.00010945,2]
[340086114,1728490232313,-1000.0,0.00010945,2]
[340086115,1728490232322,-1000.0,0.00010945,2]
[340086116,1728490232331,-1000.0,0.00010945,2]
[340086117,1728490232340,-1000.0,0.00010945,2]
[340086118,1728490232349,-1000.0,0.00010945,2]
[340086119,1728490232358,-608.2078,0.00010945,2]
[340086120,1728490232367,-500.0,0.00010958,2]
[340086121,1728490232376,-244.54868477,0.00010958,2]
[340086122,1728490232386,-504.93658681,0.00010958,2]
[340086123,1728490232395,-500.0,0.00010958,2]
[340086124,1728490232405,-198.1744672,0.00010958,2]
[340086125,1728490232414,-500.68734814,0.00010958,2]
[340086126,1728490232423,-635.79404351,0.00010958,2]
[340086127,1728490232432,-500.0,0.00010958,2]
[340086128,1728490232443,-500.0,0.00010958,2]
[340086129,1728490232453,-500.0,0.00010958,2]
[340086130,1728490232462,-500.0,0.00010958,2]
[340086131,1728490232470,-500.0,0.00010958,2]
[340086132,1728490232479,-500.0,0.00010958,2]
[340086133,1728490232490,-500.0,0.00010958,2]
[340086134,1728490232499,-500.0,0.00010958,2]
[340086135,1728490232509,-500.0,0.00010958,2]
[340086136,1728490232518,-500.0,0.00010958,2]
[340086137,1728490232528,-500.0,0.00010958,2]
[340086138,1728490232537,-500.0,0.00010958,2]
[340086139,1728490232547,-500.0,0.00010958,2]
[340086140,1728490232557,-500.0,0.00010958,2]
[340086141,1728490232566,-236.34485435,0.00010958,2]
[340086142,1728490232575,-500.0,0.00010958,2]
[340086143,1728490232587,-500.0,0.00010958,2]
[340086144,1728490232596,-500.0,0.00010958,2]
[340086145,1728490232605,-160.86,0.00010959,2]
[340086146,1728490232615,-478.68,0.00010959,2]
[340086147,1728490232625,-250.0,0.00010959,2]
[340086148,1728490232634,-150.0,0.00010959,2]
[340086149,1728490232643,-161.91,0.00010959,2]
[340086150,1728490232652,-154.95482619,0.00010973,2]
[340086151,1728490232663,-501.29846828,0.00010973,2]
[340086152,1728490232673,-500.0,0.00010973,2]
[340086153,1728490232682,-203.41411612,0.00010973,2]
[340086154,1728490232692,-500.0,0.00010973,2]
[340086155,1728490232701,-187.5332026,0.0001099,2]
[340086156,1728490232711,-152.11531837,0.00010999,2]
[340086157,1728490232720,-502927.33798347,0.00011,2]
[340086158,1728490232731,-544.02,0.00011,2]
[340086159,1728490232742,-980.23063339,0.00011,2]
[340086160,1728490232754,-5599.02414876,0.00011,2]
[340086161,1728490232765,-3576.97871244,0.00011,2]
[340086162,1728490232775,-4477.92071747,0.00011,2]
[340086163,1728490232787,-1182.73708964,0.00011,2]
[340086164,1728490232798,-777.95581629,0.00011,2]
[340086165,1728490232810,-2135.8388,0.00011,2]
[340086166,1728490232820,-10552.6900996,0.00011,2]
[340086167,1728490232836,-5582.95191361,0.00011,2]
[340086168,1728490232847,-475.92038193,0.00011,2]
[340086169,1728490232858,-933.77278904,0.00011,2]
[340086170,1728490232869,-544498.94264741,0.00011,2]
[340086171,1728490232880,-630.08,0.00011,2]
[340086175,1728490238091,-167.43902084,0.000109,2]
[340086176,1728490238103,-571.93777917,0.00011,2]
[340086177,1728490238305,-749.86877271,0.00011,2]
[340086178,1728490238316,-5037.25274,0.00011,2]
[340086179,1728490238359,-120454.18650559,0.00011,2]
[340086180,1728490238427,-1779436.0858983,0.00011,2]
[340086183,1728490239941,-207.98,0.00010959,2]
[340086184,1728490239950,-181.46550813,0.00011,2]
[340086185,1728490239995,-15626.86125,0.00011,2]
[340086186,1728490240103,-4086.77261693,0.00011,2]
[340086187,1728490240160,-4371.11245342,0.00011,2]
[340086188,1728490240172,-17478.02484824,0.00011,2]
[340086189,1728490240183,-7177.8541994,0.00011,2]
[340086190,1728490240216,-606.43798335,0.00011,2]
[340086191,1728490240272,-464.88922511,0.00011,2]
[340086223,1728490244766,-20249.17236583,0.00011,2]
[340086224,1728490244777,-1858.93673647,0.00011,2]
[340086225,1728490244788,-3688.73020155,0.00011,2]
[340086226,1728490244800,-1018475.35422146,0.00011,2]
[340086227,1728490244811,-306.38000006,0.00011,2]
[340086228,1728490244830,-1095.78215054,0.00011,2]
[340086229,1728490244841,-5731.1975172,0.00011,2]
[340086230,1728490244853,-2581.2614539,0.00011,2]
[340086231,1728490244866,-9260.49516554,0.00011,2]
[340086233,1728490245928,-4865.54622921,0.00011,2]
[340086234,1728490245940,-9317.61168628,0.00011,2]
[340086235,1728490245950,-4943.43172972,0.00011,2]
[340086236,1728490245983,-511.51386836,0.00011,2]
[340086237,1728490245994,-337.975,0.00011,2]
[340086238,1728490246004,-109272.68863496,0.00011,2]
[340086239,1728490246041,-12340.284517,0.00011,2]
[340086240,1728490246201,-11990.3566,0.00011,2]
[340086255,1728490539580,-30985.6553995,0.000138,3]
[340086256,1728490539606,-19014.3446005,0.000139,3]
[340086257,1728490543236,-50000.0,0.000139,3]
[340086258,1728490550894,-50000.0,0.000139,3]
[340086259,1728490572173,-50000.0,0.000139,3]
[340086260,1728490574868,-43636.9188135,0.000139,3]
[340086261,1728490659939,185.62,9.947e-05,2]
[340086262,1728490688155,885.40649605,0.000139,3]
[340086263,1728490763006,270.0,9.948e-05,2]
[340086264,1728490830784,250.0,9.956e-05,2]
[340086265,1728490869716,561.9,0.00010028,2]
[340086266,1728490893286,250.0,9.947e-05,2]
[340086267,1728490952910,643.93,8.219e-05,2]
[340086268,1728490987445,49114.59350395,0.000139,3]
[340086269,1728490987470,50000.0,0.000139,3]
[340086270,1728490987494,17843.60137405,0.000139,3]
[340086271,1728491012303,800.0,9.947e-05,2]
[340086272,1728491027907,23900.0,9.947e-05,2]
[340086273,1728491121488,-643.93,0.00010473,2]
[340086274,1728491121511,-2512.0055,0.0001068,2]
[340086275,1728491121534,-5207.528,0.0001078,2]
[340086276,1728491121557,-918.0,0.0001089,2]
[340086277,1728491121580,-150.0,0.00010899,2]
[340086278,1728491121602,-1682.2527,0.000109,2]
[340086279,1728491121626,-7500.0,0.000109,2]
[340086280,1728491121649,-433.2501,0.000109,2]
[340086281,1728491121673,-12053.0337,0.000109,2]
[340086282,1728491244809,270.0,9.945e-05,2]
[340086283,1728491278449,896.41827038,0.0001,2]
[340086285,1728491288613,31082.6848682,0.000138,3]
[340086306,1728491409400,250.0,9.96e-05,2]
[340086323,1728491432109,-709.40383209,0.00010899,2]
[340086324,1728491432119,-258.50862587,0.00010899,2]
[340086325,1728491432217,-450.8952062,0.00010899,2]
[340086326,1728491432227,-709.40383207,0.00010899,2]
[340086327,1728491432236,-709.40383207,0.00010899,2]
[340086328,1728491432246,-709.40383207,0.00010899,2]
[340086329,1728491432256,-709.40383207,0.00010899,2]
[340086330,1728491432265,-709.40383207,0.00010899,2]
[340086331,1728491432275,-709.40383207,0.00010899,2]
[340086332,1728491432284,-44387.0495,0.000109,2]
[340086333,1728491432294,-318.20314091,0.000109,2]
[340086334,1728491432304,-165.81338366,0.000109,2]
[340086335,1728491432314,-2937.659,0.000109,2]
[340086336,1728491432323,-2400.0,0.000109,2]
[340086338,1728491432332,-1724.4573,0.000109,2]
[340086340,1728491432345,-619.24983098,0.000109,2]
[340086342,1728491432354,-950.4596,0.000109,2]
[340086344,1728491432363,-167.43902082,0.000109,2]
[340086345,1728491432372,-349.6297,0.000109,2]
[340086346,1728491432383,-294.91544506,0.000109,2]
[340086347,1728491432393,-207.61965061,0.000109,2]
[340086348,1728491432402,-255.05747434,0.000109,2]
[340086350,1728491432413,-362.08,0.00010901,2]
[340086351,1728491432423,-362.08,0.00010903,2]
[340086352,1728491432432,-299.99,0.00010903,2]
[340086353,1728491432441,-709.40383207,0.00010904,2]
[340086354,1728491432451,-362.08,0.00010906,2]
[340086355,1728491432460,-362.08,0.00010909,2]
[340086356,1728491432470,-499.99,0.00010909,2]
[340086357,1728491432479,-362.08,0.00010912,2]
[340086358,1728491432489,-150.99,0.00010912,2]
[340086359,1728491432499,-150.99,0.00010912,2]
[340086360,1728491432508,-2491.72,0.00010912,2]
[340086361,1728491432518,-847.8,0.00010912,2]
[340086362,1728491432527,-1178.54,0.00010912,2]
[340086363,1728491432537,-709.40383207,0.00010914,2]
[340086364,1728491432546,-1320.14,0.00010914,2]
[340086365,1728491432555,-1910.11,0.00010914,2]
[340086366,1728491432565,-362.08,0.00010915,2]
[340086367,1728491432575,-362.08,0.00010918,2]
[340086368,1728491432585,-1503.86,0.00010918,2]
[340086369,1728491432594,-362.08,0.00010921,2]
[340086370,1728491432604,-362.08,0.00010924,2]
[340086371,1728491432613,-362.08,0.00010926,2]